bitfinex/quotes_ETHUSD_20250106
["timestamp","ask_amount","ask_price","bid_price","bid_amount"]
[1736138570408,2.04387583,3664.9,3664.5,0.08861172]
[1736138571007,2.04387583,3664.9,3664.6,0.8083]
[1736138571318,2.04387583,3664.9,3664.5,0.08861172]
[1736138571319,2.04387583,3664.9,3664.8,0.8083]
[1736138571461,3.39402031,3665.0,3664.8,0.8083]
[1736138571663,3.39402031,3665.0,3664.8,0.89680587]
[1736138572079,3.39402031,3665.0,3664.9,0.33526559]
[1736138572314,3.39402031,3665.0,3664.9,0.42373619]
[1736138573007,3.39402031,3665.0,3664.9,0.0884706]
[1736138573305,1.14392503,3665.4,3664.9,0.0884706]
[1736138573871,1.14392503,3665.4,3665.0,35.0]
[1736138574064,1.14392503,3665.4,3665.0,35.08843532]
[1736138574683,3.39402031,3665.5,3665.0,35.08843532]
[1736138575767,1.18054649,3665.1,3665.0,0.08843532]
[1736138575984,1.18054649,3665.3,3665.0,0.08843532]
[1736138576186,1.18054649,3665.3,3664.5,0.782]
[1736138576662,1.18054649,3665.3,3664.6,0.08857643]
[1736138578012,1.18054649,3665.3,3664.7,35.0]
[1736138578309,1.18054649,3665.3,3664.8,0.08850587]
[1736138578481,1.18054649,3665.3,3664.7,35.0]
[1736138578681,1.18054649,3665.3,3664.9,0.0884706]
[1736138578915,1.18054649,3665.3,3664.7,35.0]
[1736138579214,1.18054649,3665.3,3665.0,0.08843532]
[1736138579411,1.18054649,3665.3,3664.7,35.0]
[1736138579585,1.18054649,3665.3,3665.1,0.08840005]
[1736138579783,1.90814003,3665.3,3664.7,35.0]
[1736138580002,1.18054649,3665.3,3665.2,0.08836478]
[1736138580515,1.18054649,3665.3,3664.7,35.0]
[1736138580811,1.18054649,3665.3,3665.2,0.08836478]
[1736138581122,2.07888918,3665.3,3665.2,0.08836478]
[1736138581320,2.07888918,3665.3,3664.7,35.0]
[1736138581654,2.07888918,3665.3,3665.2,0.08836478]
[1736138581775,2.07888918,3665.3,3664.7,35.0]
[1736138581972,2.07888918,3665.3,3664.8,0.08850587]
[1736138582205,1.18054649,3665.3,3664.8,0.08850587]
[1736138582510,1.18054649,3665.3,3664.9,35.0]
[1736138582694,1.18054649,3665.3,3664.9,35.0884706]
[1736138585712,1.14392503,3665.5,3665.0,0.8314]
[1736138585881,1.14392503,3665.5,3665.0,3.37533042]
[1736138586089,1.14392503,3665.5,3665.1,35.0]
[1736138586418,1.14392503,3665.5,3665.1,35.08800926]
[1736138586918,0.7721,3665.4,3665.1,35.08800926]
[1736138587317,1.95264649,3665.4,3665.1,35.08800926]
[1736138587524,1.95264649,3665.4,3665.1,0.08800926]
[1736138587816,1.95264649,3665.4,3664.6,0.8108]
[1736138588115,1.95264649,3665.4,3664.7,35.0]
[1736138588316,1.95264649,3665.4,3664.7,35.08802745]
[1736138589590,0.7721,3665.4,3664.7,35.08802745]
[1736138589790,0.7721,3665.4,3664.7,37.54387745]
[1736138590105,0.7721,3665.4,3664.8,2.45578]
[1736138590302,0.7721,3665.4,3664.8,2.54387313]
[1736138590476,0.7721,3665.4,3664.8,0.08809313]
[1736138590679,0.7721,3665.4,3664.9,35.0]
[1736138590976,0.7721,3665.4,3664.9,35.08805786]
[1736138595914,0.7721,3665.4,3664.9,0.08805786]
[1736138596315,0.7721,3665.4,3664.9,35.08805786]
[1736138602934,1.95264649,3665.4,3664.9,35.08805786]
[1736138604267,1.95264649,3665.4,3664.9,36.33037571]
[1736138605489,0.79,3665.3,3664.9,36.33037571]
[1736138606468,3.03670285,3665.3,3664.9,36.33037571]
[1736138607357,3.03670285,3665.3,3664.9,1.33037571]
[1736138607528,3.03670285,3665.3,3664.9,0.08805786]
[1736138607727,3.03670285,3665.3,3664.6,2.45591]
[1736138607944,0.89868114,3665.2,3664.7,35.0]
[1736138608243,0.89868114,3665.2,3664.7,35.08760844]
[1736138608878,2.83260617,3665.3,3664.7,35.08760844]
[1736138610369,3.39140873,3665.2,3664.7,35.08760844]
[1736138615058,2.04260617,3665.1,3664.7,35.08760844]
[1736138617473,0.89868114,3665.0,3664.7,35.08760844]
[1736138621721,2.07922763,3665.0,3664.7,35.08760844]
[1736138621880,0.8041,3664.9,3664.7,35.08760844]
[1736138622073,0.8041,3664.9,3664.7,0.08760844]
[1736138622413,0.8041,3664.9,3664.4,1.14299604]
[1736138622617,0.8041,3664.9,3664.8,0.08759952]
[1736138622773,0.8041,3664.9,3664.5,35.0]
[1736138623116,0.89868114,3664.8,3664.5,36.4215145]
[1736138623413,0.89868114,3664.8,3664.6,0.08767008]
[1736138624208,1.94802503,3664.9,3664.6,0.08767008]
[1736138624209,0.8041,3664.9,3664.6,0.08767008]
[1736138624511,0.8041,3664.7,3664.6,0.08767008]
[1736138624999,0.8041,3664.7,3664.4,36.14299604]
[1736138625175,0.8041,3664.7,3664.6,0.08767008]
[1736138625376,4.19686071,3664.7,3664.1,1.42154168]
[1736138625883,4.19686071,3664.7,3664.2,35.0]
[1736138626086,4.19686071,3664.7,3664.2,35.08787707]
[1736138626487,2.24883568,3664.6,3664.2,36.03537428]
[1736138627701,0.89953427,3664.6,3664.2,35.08787707]
[1736138628732,4.19613127,3664.7,3664.2,35.08787707]
[1736138629804,2.8475593,3664.7,3664.2,35.08787707]
[1736138630000,0.89953427,3664.6,3664.2,35.08787707]
[1736138630907,0.89953427,3664.6,3664.2,0.08787707]
[1736138631245,0.89953427,3664.6,3663.9,2.45638]
[1736138631405,0.89953427,3664.6,3664.3,35.08807885]
[1736138631605,2.8475593,3664.7,3664.3,35.0]
[1736138631805,2.8475593,3664.7,3664.4,0.08804356]
[1736138632910,0.8041,3664.7,3664.4,0.08804356]
[1736138634847,0.8041,3664.7,3664.1,35.0]
[1736138635057,0.8041,3664.7,3664.5,0.08800828]
[1736138635222,0.8041,3664.7,3664.1,35.0]
[1736138635755,0.8041,3664.7,3664.2,0.08811414]
[1736138640360,0.8041,3664.7,3663.9,2.45638]
[1736138640575,0.8041,3664.7,3664.3,0.08813595]
[1736138640862,0.8041,3664.7,3664.0,35.0]
[1736138641061,0.8041,3664.7,3664.4,0.08810066]
[1736138641361,0.8041,3664.7,3664.0,35.0]
[1736138641567,0.8041,3664.7,3664.5,0.08806538]
[1736138641895,0.8041,3664.7,3664.0,35.0]
[1736138642169,0.8041,3664.7,3664.0,37.45626]
[1736138642319,0.8041,3664.7,3664.1,0.08820653]
[1736138642819,0.8041,3664.7,3664.2,0.8206]
[1736138643159,0.8041,3664.7,3664.3,0.08813595]
[1736138644583,1.14392503,3664.9,3664.3,0.08813595]
[1736138645522,1.14392503,3664.9,3664.4,35.0]
[1736138645721,1.14392503,3664.9,3664.4,35.08810066]
[1736138645922,2.04280314,3664.9,3664.4,35.08810066]
[1736138647174,1.3485814,3664.8,3664.4,35.08810066]
[1736138648473,2.04280314,3664.9,3664.4,35.85930066]
[1736138648676,2.04280314,3664.9,3664.8,0.7712]
[1736138648825,2.04280314,3664.9,3664.8,3.22699]
[1736138649025,2.04280314,3664.9,3664.8,3.31498465]
[1736138649463,2.04280314,3664.9,3664.8,38.31498465]
[1736138649668,1.14392503,3665.4,3665.0,2.45566]
[1736138650031,1.14392503,3665.4,3665.1,0.08788883]
[1736138651035,2.2867241,3665.7,3665.1,0.08788883]
[1736138651036,1e-05,3665.7,3665.1,0.08788883]
[1736138655176,1e-05,3665.7,3665.1,0.11517012]
[1736138655486,1e-05,3665.7,3665.3,2.45544]
[1736138655653,1e-05,3665.7,3665.4,0.4528751]
[1736138655853,1e-05,3665.7,3665.4,2.9954618]
[1736138657571,1e-05,3665.7,3665.5,2.48258866]
[1736138657781,1e-05,3665.7,3665.6,0.83]
[1736138657942,1e-05,3665.7,3665.6,0.91714617]
[1736138658142,1e-05,3665.7,3665.6,1.41773395]
[1736138658999,1e-05,3665.7,3665.6,36.41773395]
[1736138663350,1e-05,3665.7,3665.6,35.58773395]
[1736138663556,1e-05,3665.7,3665.6,0.58773395]
[1736138663897,1e-05,3665.7,3665.6,0.08714617]
[1736138664277,1e-05,3665.7,3665.3,35.0]
[1736138664494,1e-05,3665.7,3665.6,0.08714617]
[1736138664716,1e-05,3665.7,3665.3,35.0]
[1736138664899,1e-05,3665.7,3665.6,0.08714617]
[1736138665296,1e-05,3665.7,3665.3,35.0]
[1736138665805,1e-05,3665.7,3665.4,0.0872167]
[1736138666209,1e-05,3665.7,3665.2,0.8137]
[1736138666515,1e-05,3665.7,3665.3,35.08725196]
[1736138676340,0.8056,3665.6,3665.3,35.08725196]
[1736138677601,1e-05,3665.7,3665.3,35.08725196]
[1736138678403,0.7599,3665.6,3665.3,35.08725196]
[1736138681337,1e-05,3665.7,3665.3,35.08725196]
[1736138681526,1e-05,3665.7,3665.3,0.08725196]
[1736138681868,1e-05,3665.7,3665.1,3.20909]
[1736138682031,1e-05,3665.7,3665.4,0.08694019]
[1736138682234,1e-05,3665.7,3665.2,35.0]
[1736138682450,1e-05,3665.7,3665.3,0.08697545]
[1736138685827,1e-05,3665.7,3665.4,35.0]
[1736138686068,1e-05,3665.7,3665.5,0.08690492]
[1736138686670,0.7572,3665.6,3665.5,0.08690492]
[1736138689482,1e-05,3665.7,3665.5,0.08690492]
[1736138690036,1e-05,3665.7,3665.3,2.45544]
[1736138690281,1e-05,3665.7,3665.4,35.08696654]
[1736138693777,0.76462561,3665.9,3665.4,35.08696654]
[1736138695254,1.33121258,3665.8,3665.5,2.45532]
[1736138695577,1.33121258,3665.8,3665.6,0.08689601]
[1736138696597,1.14392503,3666.0,3665.6,35.08689601]
[1736138696760,0.8276,3665.9,3665.6,35.08689601]
[1736138697172,0.8276,3665.9,3665.6,0.08689601]
[1736138697497,0.8276,3665.9,3665.3,2.45545]
[1736138697649,0.8276,3665.9,3665.7,0.08673348]
[1736138697852,0.8276,3665.9,3665.3,2.45545]
[1736138698057,0.8276,3665.9,3665.4,0.08683927]
[1736138698803,1.14392503,3665.8,3665.4,0.08683927]
[1736138700429,2.47481133,3665.8,3665.4,0.08683927]
[1736138700633,2.47481133,3665.8,3665.5,35.39631035]
[1736138700802,2.47481133,3665.8,3665.6,0.08676874]
[1736138701539,1.3308863,3665.8,3665.6,0.08676874]
[1736138702920,1.97152503,3665.9,3665.6,0.08676874]
[1736138703259,1.14392503,3665.9,3665.7,1.18054649]
[1736138703406,1.14392503,3665.9,3665.8,4.42420781]
[1736138703743,1.14392503,3665.9,3665.8,4.5108051]
[1736138704107,1.14392503,3665.9,3665.8,3.32931729]
[1736138704307,2.85923935,3666.4,3665.8,3.32931729]
[1736138704308,1.14392503,3666.2,3665.8,3.32931729]
[1736138704509,1.14392503,3666.2,3665.9,35.0]
[1736138704847,1.14392503,3666.2,3666.0,0.086518]
[1736138705521,1.14392503,3666.2,3666.1,35.0]
[1736138705723,2.47399008,3666.4,3666.1,35.08630725]
[1736138706260,0.83,3666.2,3666.1,0.08630725]
[1736138706407,0.83,3666.2,3665.6,1.14299604]
[1736138706408,0.83,3666.2,3665.7,2.45517]
[1736138706746,0.83,3666.2,3665.8,35.5643062]
[1736138710255,1.14392503,3666.4,3665.8,35.5643062]
[1736138711049,1.14392503,3666.4,3666.0,2.45497]
[1736138711257,1.14392503,3666.4,3666.1,0.08620634]
[1736138711558,1.14392503,3666.4,3666.1,0.86540634]
[1736138711723,1.14392503,3666.4,3666.2,0.33203763]
[1736138712124,0.00993438,3666.5,3666.3,0.08608319]
[1736138712513,0.00993438,3666.5,3666.1,3.23411]
[1736138712713,0.00993438,3666.5,3666.4,0.08604795]
[1736138712940,0.00993438,3666.5,3666.1,3.23411]
[1736138713152,0.00993438,3666.5,3666.4,0.08604795]
[1736138713356,0.00993438,3666.5,3666.1,3.23411]
[1736138713516,0.00993438,3666.5,3666.4,0.08604795]
[1736138713715,0.00993438,3666.5,3666.2,0.323411]
[1736138714011,0.00993438,3666.5,3666.3,0.08608319]
[1736138714363,0.00993438,3666.5,3666.2,0.323411]
[1736138714506,0.00993438,3666.5,3666.4,0.08604795]
[1736138714709,0.00993438,3666.5,3666.3,0.08608319]
[1736138714957,0.00993438,3666.5,3666.4,0.45040837]
[1736138719482,0.00993438,3666.5,3666.4,35.45040837]
[1736138719994,0.00993438,3666.5,3666.4,37.90512837]
[1736138720149,0.00993438,3666.5,3666.4,38.66442837]
[1736138720594,0.00993438,3666.5,3666.4,35.45040837]
[1736138723791,0.00993438,3666.5,3666.4,0.45040837]
[1736138724299,0.00993438,3666.5,3666.4,35.45040837]
[1736138726102,0.00993438,3666.5,3666.4,0.08604795]
[1736138726453,0.00993438,3666.5,3665.9,35.0]
[1736138726658,0.00993438,3666.5,3665.6,13.28884604]
[1736138726659,0.828,3666.4,3666.0,0.08546307]
[1736138726961,0.828,3666.4,3665.6,4.41884604]
[1736138727176,0.828,3666.4,3666.1,0.08541904]
[1736138727377,1.2752116,3666.4,3665.7,35.0]
[1736138727691,0.828,3666.4,3665.7,35.0]
[1736138727865,0.828,3666.4,3665.8,0.08552481]
[1736138728285,0.828,3666.4,3665.6,3.27585]
[1736138728481,0.828,3666.4,3665.7,35.08556007]
[1736138728794,0.828,3666.0,3665.7,35.08556007]
[1736138728949,1.17965162,3665.9,3665.7,35.08556007]
[1736138729589,0.828,3665.8,3665.7,0.08556007]
[1736138730108,0.828,3665.8,3665.2,35.0]
[1736138730265,1.17965162,3665.7,3665.2,35.0]
[1736138730460,1.17965162,3665.7,3665.3,0.08642934]
[1736138731202,0.828,3665.8,3665.3,0.08642934]
[1736138734272,1.72377562,3665.8,3664.8,2.45575]
[1736138734477,0.828,3665.8,3664.9,0.08669768]
[1736138734679,2.45512,3665.8,3664.6,3.27652]
[1736138734906,0.8003,3665.7,3664.7,0.08676824]
[1736138736254,0.8194,3665.5,3664.4,2.56084352]
[1736138736457,0.8194,3665.5,3664.5,2.54288658]
[1736138736702,0.8194,3665.5,3664.6,0.58711301]
[1736138737303,0.8194,3665.5,3664.7,0.08686479]
[1736138742065,0.8194,3665.5,3664.8,0.7618]
[1736138742285,1.96862503,3665.8,3664.8,0.7618]
[1736138742636,0.8247,3665.8,3665.0,2.45566]
[1736138742787,0.8247,3665.8,3665.1,0.321746]
[1736138742982,0.8247,3665.8,3665.1,0.40867594]
[1736138744188,0.8247,3665.8,3665.1,0.08692994]
[1736138744388,0.8247,3665.8,3664.8,0.7618]
[1736138744885,0.8247,3665.8,3664.9,0.08697416]
[1736138745543,3.27983,3665.8,3664.9,0.08697416]
[1736138745828,0.8247,3665.8,3664.9,0.08697416]
[1736138745996,1.52857772,3665.8,3664.9,0.08697416]
[1736138753211,0.70387772,3665.8,3664.9,0.08697416]
[1736138753413,0.8285,3665.7,3664.9,0.08697416]
[1736138761304,0.8285,3665.7,3664.9,1.26711716]
[1736138761511,2.32406803,3666.1,3664.9,1.26711716]
[1736138761512,5.58479803,3666.1,3665.0,0.7958]
[1736138761753,0.4577936,3666.0,3665.1,0.08695188]
[1736138763912,0.8058,3666.1,3665.3,1.180143]
[1736138764112,0.8058,3666.1,3665.2,0.8181]
[1736138764113,1.14392503,3666.2,3665.8,0.8181]
[1736138764327,1.14392503,3666.2,3665.9,1.26674693]
[1736138764540,1.14392503,3666.2,3665.9,0.08660393]
[1736138765110,3.15406803,3666.4,3665.9,0.08660393]
[1736138765313,0.31266485,3666.3,3665.9,0.08660393]
[1736138767430,0.00993438,3666.5,3665.9,0.08660393]
[1736138767736,0.00993438,3666.5,3666.0,0.7787]
[1736138768148,0.00993438,3666.5,3666.1,0.08599367]
[1736138768839,0.00993438,3666.5,3666.4,2.45472]
[1736138769032,0.00993438,3666.5,3666.4,3.23342]
[1736138769347,0.00993438,3666.5,3666.4,3.76926359]
[1736138772965,0.00993438,3666.5,3666.4,1.31454359]
[1736138773155,0.00993438,3666.5,3666.4,0.86458792]
[1736138774331,0.00993438,3666.5,3666.4,3.31930792]
[1736138778935,0.00993438,3666.5,3666.4,38.31930792]
[1736138780981,0.00993438,3666.5,3666.4,35.86458792]
[1736138781884,0.00993438,3666.5,3666.4,0.86458792]
[1736138782039,0.00993438,3666.5,3666.4,1.19653171]
[1736138782381,0.00993438,3666.5,3666.4,36.19653171]
[1736138783081,0.00993438,3666.5,3666.4,35.41783171]
[1736138786376,0.00993438,3666.5,3666.4,36.19763171]
[1736138786583,0.00993438,3666.5,3666.4,38.65235171]
[1736138787439,0.00993438,3666.5,3666.4,36.19763171]
[1736138788080,0.00993438,3666.5,3666.4,0.08588792]
[1736138788287,0.80423438,3666.5,3665.5,3.26742]
[1736138788742,0.80423438,3666.5,3665.6,35.08270589]
[1736138789276,2.45472,3666.4,3665.6,35.08270589]
[1736138789476,0.80423438,3666.5,3665.6,35.08270589]
[1736138789477,0.7943,3666.3,3665.6,35.08270589]
[1736138789679,2.45486,3666.2,3665.6,35.08270589]
[1736138789989,0.7943,3666.3,3665.6,35.08270589]
[1736138790193,0.7943,3666.3,3665.6,36.07339104]
[1736138792514,0.7943,3666.3,3665.6,35.08270589]
[1736138792900,0.7943,3666.3,3665.7,0.7935]
[1736138793104,0.7943,3666.3,3665.8,0.07993996]
[1736138793276,0.7943,3666.3,3665.7,0.7935]
[1736138793478,0.7943,3666.3,3665.8,0.07993996]
[1736138793819,0.7943,3666.3,3665.7,0.7935]
[1736138794122,0.7943,3666.3,3665.8,0.07993996]
[1736138794300,0.7943,3666.3,3665.7,0.7935]
[1736138794618,0.7943,3666.3,3665.8,0.07993996]
[1736138794979,0.7943,3666.3,3665.7,0.7935]
[1736138795177,0.7943,3666.3,3665.9,0.0799047]
[1736138795521,0.7943,3666.3,3666.0,0.07986944]
[1736138795820,0.7943,3666.3,3665.7,0.7935]
[1736138796020,0.7943,3666.3,3666.1,0.07983419]
[1736138796311,0.7943,3666.3,3666.2,0.07979894]
[1736138796502,0.7943,3666.3,3665.7,0.7935]
[1736138796707,0.7943,3666.3,3665.8,0.07993996]
[1736138796889,0.7943,3666.3,3665.7,0.7935]
[1736138797067,0.7943,3666.3,3665.8,0.07993996]
[1736138797532,0.7943,3666.3,3665.7,0.7935]
[1736138797673,0.7943,3666.3,3665.8,0.07993996]
[1736138797873,0.7943,3666.3,3665.7,0.7935]
[1736138798216,0.7943,3666.3,3665.8,0.07993996]
[1736138798586,0.7943,3666.3,3665.7,0.7935]
[1736138798796,0.7943,3666.3,3665.9,0.0799047]
[1736138798987,0.7943,3666.3,3665.8,0.07846978]
[1736138799175,0.7943,3666.3,3666.0,0.07839926]
[1736138799377,0.7943,3666.3,3665.9,0.07843452]
[1736138799619,0.7943,3666.3,3666.1,0.07836401]
[1736138799788,0.7943,3666.3,3666.0,0.07839926]
[1736138800005,0.7943,3666.3,3666.2,0.07832876]
[1736138800217,0.7943,3666.3,3666.1,0.07836401]
[1736138800528,0.7943,3666.3,3666.2,0.07832876]
[1736138800784,0.7943,3666.3,3665.7,0.7935]
[1736138800985,0.7943,3666.3,3666.2,0.07832876]
[1736138801199,0.7943,3666.3,3665.7,0.7935]
[1736138801380,0.7943,3666.3,3666.2,0.07832876]
[1736138801609,0.7943,3666.3,3665.7,0.7935]
[1736138801815,0.00993438,3666.5,3666.2,0.07832876]
[1736138802015,0.00993438,3666.5,3665.7,0.7935]
[1736138802191,0.00993438,3666.5,3666.3,0.07829351]
[1736138802390,0.00993438,3666.5,3665.8,2.4551]
[1736138802607,0.00993438,3666.5,3666.4,0.07825826]
[1736138802826,0.00993438,3666.5,3665.8,2.4551]
[1736138803033,0.00993438,3666.5,3666.4,0.07844212]
[1736138803330,0.00993438,3666.5,3666.4,0.07695683]
[1736138803529,0.00993438,3666.5,3665.8,2.4551]
[1736138803733,0.00993438,3666.5,3665.9,0.07713309]
[1736138806085,0.00993438,3666.5,3666.0,35.0]
[1736138806290,0.00993438,3666.5,3666.1,0.07724208]
[1736138810141,0.00993438,3666.5,3665.8,2.4551]
[1736138810297,0.00993438,3666.5,3665.9,0.07730821]
[1736138810497,0.00993438,3666.5,3666.0,35.33259082]
[1736138810699,0.00993438,3666.5,3666.1,0.0772377]
[1736138811307,0.00993438,3666.5,3666.2,35.0]
[1736138811542,0.00993438,3666.5,3666.3,0.0771672]
[1736138811741,0.00993438,3666.5,3666.2,35.0]
[1736138811928,0.00993438,3666.5,3666.3,0.0771672]
[1736138812262,0.00993438,3666.5,3666.2,35.0]
[1736138812554,0.00993438,3666.5,3666.3,0.0771672]
[1736138813052,1.18950516,3666.5,3666.2,36.24520734]
[1736138813209,1.18950516,3666.5,3666.4,0.07713195]
[1736138813410,1.18950516,3666.5,3666.3,0.0771672]
[1736138813657,1.18950516,3666.5,3666.4,0.07713195]
[1736138813953,1.18950516,3666.5,3666.2,36.24520734]
[1736138814155,1.18950516,3666.5,3666.3,0.0771672]
[1736138814308,1.18950516,3666.5,3666.2,35.0]
[1736138814656,1.18950516,3666.5,3666.3,0.07721097]
[1736138815025,1.18950516,3666.5,3666.2,35.0]
[1736138815325,1.18950516,3666.5,3666.3,0.07721097]
[1736138815573,1.18950516,3666.5,3665.7,0.7935]
[1736138815877,1.18950516,3666.5,3666.4,0.07721951]
[1736138816040,1.18950516,3666.5,3665.9,35.0]
[1736138816556,1.18950516,3666.5,3666.0,0.07736052]
[1736138816757,0.00993438,3666.5,3666.0,0.07736052]
[1736138816962,0.00993438,3666.5,3666.1,0.772]
[1736138817258,0.00993438,3666.5,3666.2,35.33043905]
[1736138817463,0.00993438,3666.5,3666.2,35.40772906]
[1736138828485,0.00993438,3666.5,3666.2,35.40772906]
[1736138828839,0.00993438,3666.5,3666.2,37.86255906]
[1736138829074,0.00993438,3666.5,3666.3,2.45478]
[1736138829438,0.00993438,3666.5,3666.4,0.07698748]
[1736138829667,0.00993438,3666.5,3666.4,35.55836521]
[1736138830083,0.88477528,3666.8,3666.6,0.7971]
[1736138830246,0.88477528,3666.8,3666.7,7.98119078]
[1736138830460,0.88477528,3666.8,3666.7,8.05802436]
[1736138830663,0.88477528,3667.2,3666.7,1.64547901]
[1736138831970,0.8322,3667.3,3666.7,1.64547901]
[1736138832895,0.8322,3667.5,3666.7,1.64547901]
[1736138833096,0.8322,3667.5,3666.7,4.09997901]
[1736138833252,0.8322,3667.5,3666.8,0.324875]
[1736138833596,0.8322,3667.5,3666.9,0.07674997]
[1736138834092,1.71494389,3667.8,3667.1,0.7971]
[1736138834254,1.71494389,3667.8,3667.1,3.25131]
[1736138834453,1.71494389,3667.8,3667.2,0.07664427]
[1736138834687,1.71494389,3667.8,3667.4,2.45403]
[1736138834993,1.71494389,3668.0,3667.5,0.87363858]
[1736138835557,1.71494389,3668.0,3667.6,35.0]
[1736138835750,1.71494389,3668.0,3667.7,0.07646813]
[1736138836483,1.71494389,3668.0,3667.8,35.0]
[1736138836855,1.17957078,3668.4,3667.9,0.07592936]
[1736138837193,0.8322,3668.6,3667.9,0.07592936]
[1736138837613,0.8322,3668.6,3668.0,35.0]
[1736138837968,0.8322,3668.6,3668.1,0.07554539]
[1736138839018,0.8322,3668.6,3667.7,35.0]
[1736138839220,0.8322,3668.6,3668.2,0.07551018]
[1736138839428,0.8322,3668.6,3668.0,0.8019]
[1736138840023,0.8322,3668.6,3668.1,0.07554539]
[1736138841393,0.82891758,3668.6,3668.1,0.07554539]
[1736138841825,2.61126028,3668.2,3668.1,0.07554539]
[1736138841972,3.11771831,3668.2,3668.1,0.07554539]
[1736138842178,5.57122831,3668.2,3667.1,1.14299604]
[1736138842410,2.61126028,3667.6,3667.2,0.07531536]
[1736138842901,2.61126028,3667.6,3667.3,0.07528013]
[1736138843104,2.454,3667.5,3667.3,0.07528013]
[1736138843335,2.45364,3668.1,3667.0,1.14299604]
[1736138843628,5.06506028,3667.8,3667.0,1.14299604]
[1736138843771,5.06506028,3667.8,3667.1,0.0756]
[1736138844121,0.34986295,3668.0,3667.0,0.8019]
[1736138844321,6.20472529,3668.1,3667.0,0.8019]
[1736138844617,0.821,3668.0,3667.1,0.07568753]
[1736138844827,0.821,3668.0,3667.1,35.07568753]
[1736138844971,0.821,3668.0,3667.1,37.52993753]
[1736138845716,1.13983501,3668.2,3667.1,35.07568753]
[1736138845717,0.821,3667.7,3667.1,35.07568753]
[1736138845923,0.34322603,3667.6,3667.1,35.07568753]
[1736138846276,3.27486,3667.7,3667.1,35.07568753]
[1736138847825,1.96083501,3668.1,3667.2,0.8019]
[1736138848416,1.96083501,3668.1,3667.3,0.07555578]
[1736138848786,0.821,3668.1,3667.3,0.07555578]
[1736138848992,0.821,3668.1,3667.2,0.8019]
[1736138849205,0.821,3668.1,3667.3,0.07563893]
[1736138849522,1.52356253,3668.1,3667.4,35.0]
[1736138849725,3.97714253,3668.1,3667.4,35.0]
[1736138849922,3.97714253,3668.1,3667.5,0.07556848]
[1736138850217,3.97714253,3668.1,3667.2,0.8019]
[1736138850420,3.97714253,3668.1,3667.3,35.0]
[1736138850581,3.97714253,3668.1,3667.3,35.07557329]
[1736138851086,3.97714253,3668.1,3667.3,0.07557329]
[1736138851293,0.8263668,3668.0,3667.3,0.07557329]
[1736138851473,0.8263668,3668.0,3667.0,35.0]
[1736138851677,3.27458,3668.1,3667.4,0.07553806]
[1736138851875,3.27458,3668.1,3667.0,35.0]
[1736138852306,5.06499028,3667.9,3667.0,35.0]
[1736138852535,2.45379,3667.8,3667.1,0.07564375]
[1736138852740,0.7558,3667.7,3666.7,0.7816]
[1736138852940,1.26230503,3667.7,3666.7,0.7816]
[1736138853119,3.71616503,3667.7,3666.8,0.07574946]
[1736138853835,2.45392,3667.6,3666.8,0.07574946]
[1736138854892,1.26230503,3667.7,3666.8,0.07574946]
[1736138856408,1.26230503,3667.7,3666.7,0.7816]
[1736138856600,1.26230503,3667.7,3666.8,0.07574946]
[1736138857210,0.63273553,3667.6,3666.8,0.07574946]
[1736138857409,5.69791581,3667.6,3666.8,0.07574946]
[1736138857614,5.69791581,3667.6,3666.7,0.7816]
[1736138858011,5.69791581,3667.6,3666.8,0.07574946]
[1736138858227,2.61126028,3667.3,3666.2,2.4548]
[1736138858429,2.61126028,3667.0,3666.3,0.8107]
[1736138858915,2.61126028,3667.0,3666.4,0.07589044]
[1736138859750,0.7681,3666.9,3666.4,0.07589044]
[1736138859901,0.7681,3666.9,3666.0,0.8107]
[1736138860446,1.35146103,3666.9,3666.1,0.07622374]
[1736138861332,0.7681,3666.9,3666.1,0.07622374]
[1736138862660,0.7681,3666.9,3666.1,2.53111374]
[1736138863337,0.7975,3667.2,3666.3,2.45475]
[1736138863543,0.7975,3667.2,3666.4,0.8131]
[1736138863743,0.7975,3667.2,3666.4,0.88921799]
[1736138863946,1.49775853,3667.2,3666.4,0.88921799]
[1736138865174,0.7975,3667.2,3666.4,0.88921799]
[1736138865345,0.7975,3667.2,3666.4,3.34389799]
[1736138865547,2.61126028,3667.3,3666.4,3.34389799]
[1736138866079,0.8153,3667.4,3666.4,0.88921799]
[1736138866379,0.8153,3667.4,3666.5,2.45463]
[1736138866761,0.8153,3667.4,3666.6,0.0760475]
[1736138868147,3.75109529,3667.6,3666.7,0.7897]
[1736138868450,1.13983501,3667.6,3666.8,0.07597701]
[1736138868652,3.75109529,3667.6,3666.8,0.07597701]
[1736138869478,2.61126028,3667.6,3666.8,0.07597701]
[1736138869776,2.61126028,3667.6,3666.8,0.44143749]
[1736138871264,2.61126028,3667.6,3666.8,0.07597701]
[1736138873818,2.61126028,3667.6,3666.7,0.7897]
[1736138875927,2.61126028,3667.6,3666.8,0.07595953]
[1736138877632,1.13983501,3667.7,3666.8,0.07595953]
[1736138878504,1.13983501,3667.7,3666.9,3.24547]
[1736138878717,1.13983501,3667.7,3667.1,0.7911]
[1736138879030,1.13983501,3667.7,3667.1,3.24533]
[1736138879236,1.13983501,3667.7,3667.2,0.07574856]
[1736138879441,1.13983501,3667.9,3667.2,0.07574856]
[1736138879928,1.13983501,3667.9,3667.1,3.24533]
[1736138880132,3.75109529,3667.9,3667.1,3.24533]
[1736138881316,3.75109529,3667.9,3667.1,3.569863]
[1736138881695,3.75109529,3667.9,3667.2,0.07574856]
[1736138882196,0.90355687,3667.8,3667.2,0.07574856]
[1736138882615,0.90355687,3667.8,3667.1,0.7911]
[1736138882850,0.90355687,3667.8,3667.2,0.07562165]
[1736138883009,0.90355687,3667.8,3667.2,0.40773182]
[1736138883212,2.61126028,3667.9,3667.2,0.40773182]
[1736138884644,1.13983501,3668.0,3667.2,0.40773182]
[1736138884810,1.13983501,3668.0,3667.2,0.07562165]
[1736138885650,1.13983501,3668.0,3667.3,0.7867]
[1736138886149,1.13983501,3668.0,3667.5,2.45397]
[1736138886530,1.13983501,3668.0,3667.6,0.07538882]
[1736138887180,1.13983501,3668.0,3667.7,0.7867]
[1736138887339,1.13983501,3668.0,3667.8,0.33160588]
[1736138887665,2.49594197,3668.2,3667.7,0.7867]
[1736138887974,2.49594197,3668.2,3667.8,0.07531838]
[1736138888148,2.49594197,3668.2,3667.7,0.7867]
[1736138888349,2.49594197,3668.2,3667.8,0.07531838]
[1736138888549,1.13983501,3668.1,3667.7,0.7867]